[Event "Titled Tuesday Blitz March 15 Late 2022"]
[White "Iskusnyh, Sergei"]
[Black "Kujawski, Adam"]
[WhiteFideId "4120027"]
[BlackFideId "1100920"]
[WhiteElo "2492"]
[BlackElo "2053"]
[Result "1-0"]
[Round "03"]
[TimeControl "180+1"]
[Date "2022.03.16"]
[WhiteClock "0:00:12"]
[BlackClock "0:00:07"]

1. d4 {[%clk 0:02:47]}  Nf6 {[%clk 0:02:58]} 2. c4 {[%clk 0:02:46]}  e6 {[%clk 0:02:59]} 3. g3 {[%clk 0:02:46]}  c5 {[%clk 0:02:58]} 4. Nf3 {[%clk 0:02:45]}  cxd4 {[%clk 0:02:58]} 5. Nxd4 {[%clk 0:02:45]}  d5 {[%clk 0:02:58]} 6. Bg2 {[%clk 0:02:44]}  e5 {[%clk 0:02:58]} 7. Nf3 {[%clk 0:02:44]}  d4 {[%clk 0:02:58]} 8. O-O {[%clk 0:02:45]}  Nc6 {[%clk 0:02:59]} 9. e3 {[%clk 0:02:45]}  Bc5 {[%clk 0:02:59]} 10. exd4 {[%clk 0:02:45]}  exd4 {[%clk 0:02:59]} 11. Re1+ {[%clk 0:02:45]}  Be6 {[%clk 0:02:58]} 12. Ng5 {[%clk 0:02:44]}  O-O {[%clk 0:02:58]} 13. Nxe6 {[%clk 0:02:43]}  fxe6 {[%clk 0:02:59]} 14. Nd2 {[%clk 0:02:42]}  d3 {[%clk 0:02:31]} 15. Rf1 {[%clk 0:02:12]}  Nd4 {[%clk 0:02:14]} 16. Nb3 {[%clk 0:02:01]}  Nxb3 {[%clk 0:01:16]} 17. axb3 {[%clk 0:01:55]}  e5 {[%clk 0:01:16]} 18. Bg5 {[%clk 0:01:28]}  Kh8 {[%clk 0:00:46]} 19. Bxb7 {[%clk 0:01:22]}  Rb8 {[%clk 0:00:31]} 20. Be4 {[%clk 0:01:18]}  Qd4 {[%clk 0:00:12]} 21. Be3 {[%clk 0:00:59]}  Qxe4 {[%clk 0:00:13]} 22. Bxc5 {[%clk 0:00:59]}  Rfd8 {[%clk 0:00:12]} 23. Rxa7 {[%clk 0:00:56]}  d2 {[%clk 0:00:12]} 24. Be3 {[%clk 0:00:39]}  Rd3 {[%clk 0:00:12]} 25. Qe2 {[%clk 0:00:20]}  Rbd8 {[%clk 0:00:11]} 26. Rd1 {[%clk 0:00:19]}  Ng4 {[%clk 0:00:09]} 27. Rxd2 {[%clk 0:00:19]}  Rxd2 {[%clk 0:00:09]} 28. Qxd2 {[%clk 0:00:19]}  Rxd2 {[%clk 0:00:04]} 29. Bxd2 {[%clk 0:00:17]}  h6 {[%clk 0:00:04]} 30. h3 {[%clk 0:00:14]}  Nf6 {[%clk 0:00:03]} 31. Be3 {[%clk 0:00:13]}  Qd3 {[%clk 0:00:03]} 32. c5 {[%clk 0:00:13]}  Qxb3 {[%clk 0:00:03]} 33. c6 {[%clk 0:00:13]}  Qd1+ {[%clk 0:00:03]} 34. Kh2 {[%clk 0:00:13]}  Qc2 {[%clk 0:00:03]} 35. c7 {[%clk 0:00:12]}  Nd5 {[%clk 0:00:03]} 36. Ra8+ {[%clk 0:00:12]}  Kh7 {[%clk 0:00:03]} 37. c8=Q {[%clk 0:00:12]}  Nxe3 {[%clk 0:00:03]} 38. Qxc2+ {[%clk 0:00:11]}  Nxc2 {[%clk 0:00:04]} 39. Rc8 {[%clk 0:00:10]}  Nd4 {[%clk 0:00:04]} 40. b4 {[%clk 0:00:10]}  Kg6 {[%clk 0:00:04]} 41. Rc5 {[%clk 0:00:10]}  Kf6 {[%clk 0:00:04]} 42. b5 {[%clk 0:00:10]}  Ke6 {[%clk 0:00:05]} 43. b6 {[%clk 0:00:11]}  Kd6 {[%clk 0:00:02]} 44. b7 {[%clk 0:00:11]}  Kxc5 {[%clk 0:00:01]} 45. b8=Q {[%clk 0:00:11]}  Kd5 {[%clk 0:00:01]} 46. Qg8+ {[%clk 0:00:11]}  Ke4 {[%clk 0:00:01]} 47. Qxg7 {[%clk 0:00:11]}  Nf3+ {[%clk 0:00:02]} 48. Kh1 {[%clk 0:00:11]}  Ng5 {[%clk 0:00:03]} 49. Qg6+ {[%clk 0:00:10]}  Kd4 {[%clk 0:00:02]} 50. Qxh6 {[%clk 0:00:10]}  Ne4 {[%clk 0:00:03]} 51. Qh4 {[%clk 0:00:10]}  Kd3 {[%clk 0:00:02]} 52. Qxe4+ {[%clk 0:00:11]}  Kxe4 {[%clk 0:00:03]} 53. Kg2 {[%clk 0:00:11]}  Kd3 {[%clk 0:00:03]} 54. h4 {[%clk 0:00:11]}  Ke4 {[%clk 0:00:04]} 55. h5 {[%clk 0:00:12]}  Kf5 {[%clk 0:00:04]} 56. g4+ {[%clk 0:00:12]}  Kg5 {[%clk 0:00:02]} 57. Kg3 {[%clk 0:00:12]}  e4 {[%clk 0:00:03]} 58. Kh3 {[%clk 0:00:11]}  Kf4 {[%clk 0:00:03]} 59. h6 {[%clk 0:00:11]}  Kf3 {[%clk 0:00:04]} 60. h7 {[%clk 0:00:12]}  Kxf2 {[%clk 0:00:04]} 61. h8=Q {[%clk 0:00:12]}  e3 {[%clk 0:00:05]} 62. Qf8+ {[%clk 0:00:12]}  Ke2 {[%clk 0:00:06]} 63. Kg2 {[%clk 0:00:12]}  Kd3 {[%clk 0:00:07]} 64. Qd6+ {[%clk 0:00:12]}  Ke2 {[%clk 0:00:06]} 65. Qd4 {[%clk 0:00:11]}  Ke1 {[%clk 0:00:07]} 66. Qxe3+ {[%clk 0:00:12]} 1-0


[Site "https://www.chess.com"]

[Event "Titled Tuesday Blitz March 15 Late 2022"]
[White "Kadam, Om Manish"]
[Black "Sarkar, Justin"]
[WhiteFideId "45076294"]
[BlackFideId "2010011"]
[WhiteElo "1729"]
[BlackElo "2038"]
[Result "1/2-1/2"]
[Round "03"]
[TimeControl "180+1"]
[Date "2022.03.16"]
[WhiteClock "0:00:14"]
[BlackClock "0:00:04"]

1. e4 {[%clk 0:02:59]}  g6 {[%clk 0:02:57]} 2. d4 {[%clk 0:02:59]}  Bg7 {[%clk 0:02:56]} 3. Nf3 {[%clk 0:02:59]}  d6 {[%clk 0:02:55]} 4. Bc4 {[%clk 0:03:00]}  Nf6 {[%clk 0:02:51]} 5. Nc3 {[%clk 0:02:59]}  O-O {[%clk 0:02:49]} 6. h3 {[%clk 0:02:59]}  Nxe4 {[%clk 0:02:45]} 7. Bxf7+ {[%clk 0:02:59]}  Rxf7 {[%clk 0:02:44]} 8. Nxe4 {[%clk 0:03:00]}  Nc6 {[%clk 0:02:37]} 9. c3 {[%clk 0:03:00]}  e5 {[%clk 0:02:33]} 10. dxe5 {[%clk 0:02:56]}  Nxe5 {[%clk 0:02:31]} 11. Nxe5 {[%clk 0:02:56]}  Bxe5 {[%clk 0:02:30]} 12. O-O {[%clk 0:02:56]}  d5 {[%clk 0:02:15]} 13. Ng5 {[%clk 0:02:51]}  Rf8 {[%clk 0:02:13]} 14. Be3 {[%clk 0:02:46]}  c6 {[%clk 0:02:10]} 15. Nf3 {[%clk 0:02:43]}  Bd6 {[%clk 0:01:56]} 16. b4 {[%clk 0:02:33]}  Qf6 {[%clk 0:01:43]} 17. Nd4 {[%clk 0:02:17]}  Qe5 {[%clk 0:01:36]} 18. g3 {[%clk 0:02:15]}  Bxh3 {[%clk 0:01:32]} 19. Re1 {[%clk 0:02:15]}  Qf6 {[%clk 0:01:28]} 20. Qd2 {[%clk 0:01:59]}  h5 {[%clk 0:01:12]} 21. Bg5 {[%clk 0:01:57]}  Qf7 {[%clk 0:01:07]} 22. f4 {[%clk 0:01:46]}  Rfe8 {[%clk 0:00:59]} 23. Nf3 {[%clk 0:01:33]}  Bg4 {[%clk 0:00:44]} 24. Ne5 {[%clk 0:01:31]}  Bxe5 {[%clk 0:00:40]} 25. fxe5 {[%clk 0:01:32]}  Bf5 {[%clk 0:00:20]} 26. Bf6 {[%clk 0:01:31]}  Be4 {[%clk 0:00:19]} 27. Rad1 {[%clk 0:01:09]}  Kh7 {[%clk 0:00:17]} 28. g4 {[%clk 0:00:40]}  Qe6 {[%clk 0:00:14]} 29. gxh5 {[%clk 0:00:36]}  Qg4+ {[%clk 0:00:13]} 30. Kf1 {[%clk 0:00:23]}  Qh3+ {[%clk 0:00:11]} 31. Kg1 {[%clk 0:00:19]}  Qg3+ {[%clk 0:00:10]} 32. Kf1 {[%clk 0:00:19]}  Qh3+ {[%clk 0:00:05]} 33. Kg1 {[%clk 0:00:14]}  Qg3+ {[%clk 0:00:05]} 34. Kf1 {[%clk 0:00:14]}  Qh3+ {[%clk 0:00:04]} 1/2-1/2


[Site "https://www.chess.com"]

[Event "Titled Tuesday Blitz March 15 Late 2022"]
[White "Koutlas, Nikolaos"]
[Black "Sochacki, Christophe"]
[WhiteFideId "25827138"]
[BlackFideId "662569"]
[WhiteElo "1610"]
[BlackElo "2480"]
[Result "0-1"]
[Round "03"]
[TimeControl "180+1"]
[Date "2022.03.16"]
[WhiteClock "0:00:03"]
[BlackClock "0:00:28"]

1. e4 {[%clk 0:03:00]}  c5 {[%clk 0:02:48]} 2. Nf3 {[%clk 0:03:00]}  d6 {[%clk 0:02:48]} 3. b3 {[%clk 0:02:59]}  Nf6 {[%clk 0:02:47]} 4. Nc3 {[%clk 0:02:58]}  Nc6 {[%clk 0:02:46]} 5. Bb2 {[%clk 0:02:56]}  g6 {[%clk 0:02:47]} 6. Nd5 {[%clk 0:02:56]}  e5 {[%clk 0:02:39]} 7. Bc4 {[%clk 0:02:05]}  Bg7 {[%clk 0:02:36]} 8. O-O {[%clk 0:02:03]}  Nxe4 {[%clk 0:02:24]} 9. Re1 {[%clk 0:01:24]}  Nf6 {[%clk 0:02:23]} 10. Nxf6+ {[%clk 0:00:49]}  Qxf6 {[%clk 0:02:16]} 11. b4 {[%clk 0:00:37]}  O-O {[%clk 0:01:43]} 12. bxc5 {[%clk 0:00:33]}  Bg4 {[%clk 0:01:43]} 13. cxd6 {[%clk 0:00:30]}  Qxd6 {[%clk 0:01:35]} 14. d3 {[%clk 0:00:22]}  Nd4 {[%clk 0:01:01]} 15. Bxd4 {[%clk 0:00:19]}  exd4 {[%clk 0:01:02]} 16. h3 {[%clk 0:00:20]}  Bd7 {[%clk 0:01:00]} 17. Rb1 {[%clk 0:00:19]}  Bc6 {[%clk 0:01:01]} 18. Nd2 {[%clk 0:00:18]}  a6 {[%clk 0:00:58]} 19. Ne4 {[%clk 0:00:18]}  Qf4 {[%clk 0:00:54]} 20. g3 {[%clk 0:00:17]}  Qc7 {[%clk 0:00:46]} 21. Ng5 {[%clk 0:00:11]}  h6 {[%clk 0:00:43]} 22. Ne4 {[%clk 0:00:08]}  b5 {[%clk 0:00:43]} 23. Bb3 {[%clk 0:00:08]}  a5 {[%clk 0:00:44]} 24. a3 {[%clk 0:00:09]}  Rac8 {[%clk 0:00:42]} 25. Qd2 {[%clk 0:00:08]}  a4 {[%clk 0:00:42]} 26. Ba2 {[%clk 0:00:07]}  Bxe4 {[%clk 0:00:37]} 27. Rxe4 {[%clk 0:00:06]}  Qxc2 {[%clk 0:00:37]} 28. Qxc2 {[%clk 0:00:06]}  Rxc2 {[%clk 0:00:38]} 29. Bd5 {[%clk 0:00:06]}  Rc3 {[%clk 0:00:34]} 30. Rxb5 {[%clk 0:00:06]}  Rxd3 {[%clk 0:00:32]} 31. Ra5 {[%clk 0:00:04]}  Rxa3 {[%clk 0:00:32]} 32. Re7 {[%clk 0:00:03]}  d3 {[%clk 0:00:31]} 33. Bf3 {[%clk 0:00:03]}  d2 {[%clk 0:00:31]} 34. Bg4 {[%clk 0:00:02]}  h5 {[%clk 0:00:28]} 35. Kg2 {[%clk 0:00:02]}  hxg4 {[%clk 0:00:28]} 36. hxg4 {[%clk 0:00:03]} 0-1


[Site "https://www.chess.com"]

[Event "Titled Tuesday Blitz March 15 Late 2022"]
[White "Krishnan, Varun"]
[Black "Quesada Perez, Yuniesky"]
[WhiteFideId "5054508"]
[BlackFideId "3504409"]
[WhiteElo "2573"]
[BlackElo "2622"]
[Result "0-1"]
[Round "03"]
[TimeControl "180+1"]
[Date "2022.03.15"]
[WhiteClock "0:00:03"]
[BlackClock "0:01:01"]

1. e4 {[%clk 0:02:56]}  d5 {[%clk 0:02:59]} 2. exd5 {[%clk 0:02:56]}  Qxd5 {[%clk 0:03:00]} 3. Nc3 {[%clk 0:02:56]}  Qa5 {[%clk 0:02:59]} 4. d4 {[%clk 0:02:56]}  Nf6 {[%clk 0:03:00]} 5. Nf3 {[%clk 0:02:55]}  Bf5 {[%clk 0:03:00]} 6. Bc4 {[%clk 0:02:52]}  e6 {[%clk 0:03:00]} 7. Bd2 {[%clk 0:02:51]}  Bb4 {[%clk 0:03:00]} 8. a3 {[%clk 0:02:41]}  Bxc3 {[%clk 0:03:00]} 9. Bxc3 {[%clk 0:02:40]}  Qb6 {[%clk 0:03:01]} 10. O-O {[%clk 0:02:07]}  Nc6 {[%clk 0:02:59]} 11. Ne5 {[%clk 0:02:03]}  Ne4 {[%clk 0:02:58]} 12. Nxc6 {[%clk 0:01:57]}  Nxc3 {[%clk 0:02:57]} 13. bxc3 {[%clk 0:01:55]}  Qxc6 {[%clk 0:02:57]} 14. Bd3 {[%clk 0:01:53]}  Bg6 {[%clk 0:02:58]} 15. Bxg6 {[%clk 0:01:50]}  hxg6 {[%clk 0:02:57]} 16. Qd3 {[%clk 0:01:50]}  O-O-O {[%clk 0:02:50]} 17. Rab1 {[%clk 0:01:47]}  Rh5 {[%clk 0:02:49]} 18. Rb3 {[%clk 0:01:41]}  Rdh8 {[%clk 0:02:49]} 19. h3 {[%clk 0:01:41]}  Rg5 {[%clk 0:02:47]} 20. f3 {[%clk 0:01:11]}  Rxh3 {[%clk 0:02:47]} 21. Qe4 {[%clk 0:00:32]}  Rhg3 {[%clk 0:02:07]} 22. Rf2 {[%clk 0:00:32]}  Qxe4 {[%clk 0:02:05]} 23. fxe4 {[%clk 0:00:33]}  f5 {[%clk 0:02:05]} 24. c4 {[%clk 0:00:23]}  Rxb3 {[%clk 0:01:51]} 25. cxb3 {[%clk 0:00:24]}  Rg4 {[%clk 0:01:52]} 26. exf5 {[%clk 0:00:23]}  gxf5 {[%clk 0:01:53]} 27. Rd2 {[%clk 0:00:23]}  Rg3 {[%clk 0:01:52]} 28. d5 {[%clk 0:00:21]}  e5 {[%clk 0:01:36]} 29. Rb2 {[%clk 0:00:21]}  e4 {[%clk 0:01:36]} 30. Kf2 {[%clk 0:00:21]}  Rd3 {[%clk 0:01:35]} 31. a4 {[%clk 0:00:21]}  a5 {[%clk 0:01:34]} 32. Rb1 {[%clk 0:00:21]}  b6 {[%clk 0:01:33]} 33. Ke2 {[%clk 0:00:16]}  g6 {[%clk 0:01:31]} 34. g4 {[%clk 0:00:14]}  fxg4 {[%clk 0:01:19]} 35. Rg1 {[%clk 0:00:13]}  g3 {[%clk 0:01:19]} 36. Rb1 {[%clk 0:00:04]}  Kd7 {[%clk 0:01:19]} 37. Kf1 {[%clk 0:00:05]}  Kd6 {[%clk 0:01:19]} 38. b4 {[%clk 0:00:03]}  axb4 {[%clk 0:01:15]} 39. Rxb4 {[%clk 0:00:04]}  Kc5 {[%clk 0:01:16]} 40. Rb1 {[%clk 0:00:04]}  Rd2 {[%clk 0:01:08]} 41. Re1 {[%clk 0:00:02]}  Kd4 {[%clk 0:01:05]} 42. Rc1 {[%clk 0:00:02]}  e3 {[%clk 0:01:02]} 43. Kg1 {[%clk 0:00:03]}  e2 {[%clk 0:01:01]} 44. Re1 {[%clk 0:00:03]}  Rd1 {[%clk 0:01:01]} 0-1


[Site "https://www.chess.com"]

[Event "Titled Tuesday Blitz March 15 Late 2022"]
[White "Ladan, Nicholas"]
[Black "Donatti, Alvaro"]
[WhiteFideId "30918855"]
[BlackFideId "3000303"]
[WhiteElo "2167"]
[BlackElo "2138"]
[Result "1-0"]
[Round "03"]
[TimeControl "180+1"]
[Date "2022.03.16"]
[WhiteClock "0:00:18"]
[BlackClock "0:00:02"]

1. d4 {[%clk 0:02:59]}  Nf6 {[%clk 0:02:59]} 2. Bf4 {[%clk 0:02:56]}  g6 {[%clk 0:02:56]} 3. e3 {[%clk 0:02:57]}  Bg7 {[%clk 0:02:57]} 4. Nf3 {[%clk 0:02:57]}  d6 {[%clk 0:02:57]} 5. h3 {[%clk 0:02:57]}  O-O {[%clk 0:02:55]} 6. Nbd2 {[%clk 0:02:58]}  Nc6 {[%clk 0:02:55]} 7. c3 {[%clk 0:02:58]}  Nd7 {[%clk 0:02:54]} 8. Bc4 {[%clk 0:02:57]}  e5 {[%clk 0:02:52]} 9. Bg5 {[%clk 0:02:54]}  Qe8 {[%clk 0:02:48]} 10. a4 {[%clk 0:02:52]}  Kh8 {[%clk 0:02:38]} 11. O-O {[%clk 0:02:51]}  f5 {[%clk 0:02:36]} 12. d5 {[%clk 0:02:38]}  Ne7 {[%clk 0:02:33]} 13. e4 {[%clk 0:02:29]}  f4 {[%clk 0:02:30]} 14. b4 {[%clk 0:02:23]}  h6 {[%clk 0:02:30]} 15. Bxe7 {[%clk 0:02:21]}  Qxe7 {[%clk 0:02:29]} 16. Bd3 {[%clk 0:02:17]}  g5 {[%clk 0:02:23]} 17. Nh2 {[%clk 0:02:15]}  Nf6 {[%clk 0:02:21]} 18. c4 {[%clk 0:02:16]}  Qf7 {[%clk 0:02:07]} 19. c5 {[%clk 0:02:08]}  Qg6 {[%clk 0:02:03]} 20. f3 {[%clk 0:02:04]}  Nh5 {[%clk 0:02:00]} 21. Re1 {[%clk 0:01:59]}  Ng3 {[%clk 0:02:00]} 22. Ndf1 {[%clk 0:01:58]}  h5 {[%clk 0:01:53]} 23. Nxg3 {[%clk 0:01:56]}  fxg3 {[%clk 0:01:52]} 24. Nf1 {[%clk 0:01:57]}  g4 {[%clk 0:01:50]} 25. fxg4 {[%clk 0:01:40]}  hxg4 {[%clk 0:01:49]} 26. Re3 {[%clk 0:01:35]}  Bh6 {[%clk 0:01:39]} 27. Rxg3 {[%clk 0:01:32]}  Bf4 {[%clk 0:01:38]} 28. Rxg4 {[%clk 0:01:32]}  Bxg4 {[%clk 0:01:36]} 29. Qxg4 {[%clk 0:01:33]}  Qxg4 {[%clk 0:01:36]} 30. hxg4 {[%clk 0:01:34]}  Kg7 {[%clk 0:01:34]} 31. Be2 {[%clk 0:01:33]}  Kf6 {[%clk 0:01:08]} 32. Bf3 {[%clk 0:01:33]}  Rh8 {[%clk 0:01:03]} 33. Kf2 {[%clk 0:01:33]}  a5 {[%clk 0:00:50]} 34. Rb1 {[%clk 0:01:06]}  b6 {[%clk 0:00:36]} 35. cxb6 {[%clk 0:01:02]}  cxb6 {[%clk 0:00:34]} 36. Ne3 {[%clk 0:00:54]}  Rac8 {[%clk 0:00:26]} 37. bxa5 {[%clk 0:00:51]}  bxa5 {[%clk 0:00:25]} 38. Rb6 {[%clk 0:00:52]}  Rhd8 {[%clk 0:00:19]} 39. Ra6 {[%clk 0:00:36]}  Rc3 {[%clk 0:00:18]} 40. Nf5 {[%clk 0:00:31]}  Rc2+ {[%clk 0:00:13]} 41. Be2 {[%clk 0:00:29]}  Rb8 {[%clk 0:00:12]} 42. Rxd6+ {[%clk 0:00:27]}  Kg5 {[%clk 0:00:11]} 43. g3 {[%clk 0:00:26]}  Rbb2 {[%clk 0:00:08]} 44. gxf4+ {[%clk 0:00:26]}  Kxf4 {[%clk 0:00:05]} 45. Ng3 {[%clk 0:00:27]}  Rxe2+ {[%clk 0:00:03]} 46. Nxe2+ {[%clk 0:00:20]}  Kxe4 {[%clk 0:00:03]} 47. g5 {[%clk 0:00:20]}  Ra2 {[%clk 0:00:02]} 48. g6 {[%clk 0:00:18]}  Rxa4 {[%clk 0:00:02]} 49. g7 {[%clk 0:00:18]} 1-0


[Site "https://www.chess.com"]

[Event "Titled Tuesday Blitz March 15 Late 2022"]
[White "Lewicki, Miroslaw"]
[Black "Jaracz, Pawel"]
[WhiteFideId "1113380"]
[BlackFideId "1102222"]
[WhiteElo "2283"]
[BlackElo "2429"]
[Result "1-0"]
[Round "03"]
[TimeControl "180+1"]
[Date "2022.03.16"]
[WhiteClock "0:00:22"]
[BlackClock "0:00:07"]

1. g3 {[%clk 0:03:00]}  c5 {[%clk 0:02:55]} 2. Bg2 {[%clk 0:03:01]}  Nc6 {[%clk 0:02:55]} 3. Nf3 {[%clk 0:03:00]}  d6 {[%clk 0:02:55]} 4. O-O {[%clk 0:03:01]}  h5 {[%clk 0:02:55]} 5. d4 {[%clk 0:03:00]}  cxd4 {[%clk 0:02:54]} 6. Nxd4 {[%clk 0:03:01]}  Bd7 {[%clk 0:02:54]} 7. c4 {[%clk 0:02:58]}  h4 {[%clk 0:02:54]} 8. Nc3 {[%clk 0:02:58]}  hxg3 {[%clk 0:02:53]} 9. hxg3 {[%clk 0:02:58]}  Rc8 {[%clk 0:02:53]} 10. Be3 {[%clk 0:02:56]}  Qa5 {[%clk 0:02:46]} 11. Nd5 {[%clk 0:02:17]}  e6 {[%clk 0:02:44]} 12. b4 {[%clk 0:01:48]}  Qd8 {[%clk 0:02:25]} 13. Nc3 {[%clk 0:01:41]}  Ne5 {[%clk 0:02:07]} 14. Ndb5 {[%clk 0:01:26]}  Nxc4 {[%clk 0:01:58]} 15. Bxa7 {[%clk 0:01:25]}  d5 {[%clk 0:01:53]} 16. e4 {[%clk 0:01:16]}  dxe4 {[%clk 0:01:28]} 17. Bxe4 {[%clk 0:01:17]}  Bxb4 {[%clk 0:01:24]} 18. Qd4 {[%clk 0:00:53]}  Bxb5 {[%clk 0:00:40]} 19. Nxb5 {[%clk 0:00:50]}  Qxd4 {[%clk 0:00:38]} 20. Bxd4 {[%clk 0:00:49]}  Nf6 {[%clk 0:00:35]} 21. Bxb7 {[%clk 0:00:49]}  Rb8 {[%clk 0:00:35]} 22. Bc6+ {[%clk 0:00:50]}  Ke7 {[%clk 0:00:34]} 23. Rfc1 {[%clk 0:00:45]}  Nd6 {[%clk 0:00:26]} 24. Na7 {[%clk 0:00:40]}  Ba3 {[%clk 0:00:21]} 25. Rc2 {[%clk 0:00:37]}  Rh5 {[%clk 0:00:16]} 26. Bf3 {[%clk 0:00:36]}  Rhb5 {[%clk 0:00:13]} 27. Nc6+ {[%clk 0:00:32]}  Kf8 {[%clk 0:00:13]} 28. Nxb8 {[%clk 0:00:32]}  Rxb8 {[%clk 0:00:13]} 29. Bc5 {[%clk 0:00:33]}  Bxc5 {[%clk 0:00:12]} 30. Rxc5 {[%clk 0:00:33]}  Nd7 {[%clk 0:00:12]} 31. Rc7 {[%clk 0:00:32]}  Ne5 {[%clk 0:00:12]} 32. Bg2 {[%clk 0:00:29]}  Rb2 {[%clk 0:00:11]} 33. a4 {[%clk 0:00:28]}  Nd3 {[%clk 0:00:09]} 34. Rd1 {[%clk 0:00:24]}  Rb3 {[%clk 0:00:07]} 35. Rd7 {[%clk 0:00:22]} 1-0


[Site "https://www.chess.com"]

[Event "Titled Tuesday Blitz March 15 Late 2022"]
[White "Magallanes, Rey Jomar"]
[Black "Al-Tarboush, Ward"]
[WhiteFideId "5205948"]
[BlackFideId "7601450"]
[WhiteElo "2237"]
[BlackElo "2276"]
[Result "0-1"]
[Round "03"]
[TimeControl "180+1"]
[Date "2022.03.16"]
[WhiteClock "0:00:09"]
[BlackClock "0:00:35"]

1. e4 {[%clk 0:02:08]}  b6 {[%clk 0:02:41]} 2. d4 {[%clk 0:02:07]}  Bb7 {[%clk 0:02:40]} 3. Nc3 {[%clk 0:02:06]}  e6 {[%clk 0:02:41]} 4. Nf3 {[%clk 0:02:06]}  Bb4 {[%clk 0:02:40]} 5. Bd3 {[%clk 0:02:05]}  Nf6 {[%clk 0:02:40]} 6. e5 {[%clk 0:02:01]}  Ne4 {[%clk 0:02:38]} 7. Bxe4 {[%clk 0:01:59]}  Bxe4 {[%clk 0:02:39]} 8. O-O {[%clk 0:01:56]}  Bb7 {[%clk 0:02:37]} 9. Be3 {[%clk 0:01:53]}  d6 {[%clk 0:02:16]} 10. exd6 {[%clk 0:01:51]}  Bxd6 {[%clk 0:02:15]} 11. Qe2 {[%clk 0:01:48]}  O-O {[%clk 0:02:15]} 12. Rad1 {[%clk 0:01:47]}  Nd7 {[%clk 0:02:15]} 13. d5 {[%clk 0:01:40]}  exd5 {[%clk 0:02:15]} 14. Nxd5 {[%clk 0:01:37]}  Bxd5 {[%clk 0:02:11]} 15. Rxd5 {[%clk 0:01:36]}  Nf6 {[%clk 0:02:12]} 16. Rdd1 {[%clk 0:01:36]}  Qe8 {[%clk 0:02:10]} 17. Qd3 {[%clk 0:01:33]}  Qa4 {[%clk 0:02:08]} 18. a3 {[%clk 0:01:31]}  Rfe8 {[%clk 0:02:05]} 19. Nd4 {[%clk 0:01:24]}  Rad8 {[%clk 0:02:00]} 20. Qb5 {[%clk 0:01:18]}  Qxb5 {[%clk 0:01:51]} 21. Nxb5 {[%clk 0:01:19]}  Be5 {[%clk 0:01:51]} 22. h3 {[%clk 0:01:15]}  a6 {[%clk 0:01:51]} 23. Nd4 {[%clk 0:01:02]}  h6 {[%clk 0:01:50]} 24. c3 {[%clk 0:00:53]}  c5 {[%clk 0:01:34]} 25. Nc6 {[%clk 0:00:50]}  Rxd1 {[%clk 0:01:26]} 26. Rxd1 {[%clk 0:00:49]}  Bc7 {[%clk 0:01:26]} 27. b4 {[%clk 0:00:45]}  Re6 {[%clk 0:01:24]} 28. Nd8 {[%clk 0:00:41]}  Re8 {[%clk 0:01:19]} 29. Nc6 {[%clk 0:00:38]}  cxb4 {[%clk 0:01:17]} 30. cxb4 {[%clk 0:00:35]}  b5 {[%clk 0:01:02]} 31. Bc5 {[%clk 0:00:31]}  Ne4 {[%clk 0:00:59]} 32. Bd4 {[%clk 0:00:28]}  Re6 {[%clk 0:00:51]} 33. Na7 {[%clk 0:00:24]}  Rd6 {[%clk 0:00:48]} 34. Nc8 {[%clk 0:00:20]}  Rd7 {[%clk 0:00:42]} 35. Na7 {[%clk 0:00:15]}  Nc3 {[%clk 0:00:38]} 36. Rd3 {[%clk 0:00:09]}  Rxd4 {[%clk 0:00:36]} 37. Rxc3 {[%clk 0:00:09]}  Rd1# {[%clk 0:00:35]} 0-1


[Site "https://www.chess.com"]

[Event "Titled Tuesday Blitz March 15 Late 2022"]
[White "Maghsoodloo, Parham"]
[Black "Kucuksari, Kaan"]
[WhiteFideId "12539929"]
[BlackFideId "6380166"]
[WhiteElo "2630"]
[BlackElo "2305"]
[Result "1-0"]
[Round "03"]
[TimeControl "180+1"]
[Date "2022.03.15"]
[WhiteClock "0:00:09"]
[BlackClock "0:00:04"]

1. e4 {[%clk 0:03:00]}  c5 {[%clk 0:02:59]} 2. Nf3 {[%clk 0:03:01]}  e6 {[%clk 0:02:58]} 3. c3 {[%clk 0:02:58]}  d5 {[%clk 0:02:58]} 4. exd5 {[%clk 0:02:57]}  exd5 {[%clk 0:02:59]} 5. d4 {[%clk 0:02:57]}  Nf6 {[%clk 0:02:58]} 6. Bd3 {[%clk 0:02:56]}  Bd6 {[%clk 0:02:46]} 7. dxc5 {[%clk 0:02:52]}  Bxc5 {[%clk 0:02:47]} 8. O-O {[%clk 0:02:52]}  O-O {[%clk 0:02:47]} 9. Nbd2 {[%clk 0:02:53]}  Nc6 {[%clk 0:02:47]} 10. Nb3 {[%clk 0:02:52]}  Bb6 {[%clk 0:02:46]} 11. Re1 {[%clk 0:02:48]}  Bg4 {[%clk 0:02:38]} 12. h3 {[%clk 0:02:48]}  Bh5 {[%clk 0:02:38]} 13. Be3 {[%clk 0:02:45]}  Re8 {[%clk 0:02:32]} 14. Bxb6 {[%clk 0:02:34]}  Qxb6 {[%clk 0:02:33]} 15. Be2 {[%clk 0:02:35]}  Re4 {[%clk 0:01:45]} 16. Nfd2 {[%clk 0:02:24]}  Rxe2 {[%clk 0:01:39]} 17. Rxe2 {[%clk 0:02:25]}  Bxe2 {[%clk 0:01:37]} 18. Qxe2 {[%clk 0:02:25]}  Re8 {[%clk 0:01:38]} 19. Qf1 {[%clk 0:02:26]}  a5 {[%clk 0:01:21]} 20. a4 {[%clk 0:02:26]}  h6 {[%clk 0:01:00]} 21. Qb5 {[%clk 0:02:24]}  Qc7 {[%clk 0:00:57]} 22. Nf3 {[%clk 0:02:23]}  Ne4 {[%clk 0:00:51]} 23. Re1 {[%clk 0:02:19]}  Re6 {[%clk 0:00:46]} 24. Qxd5 {[%clk 0:01:59]}  Nf6 {[%clk 0:00:47]} 25. Qd1 {[%clk 0:01:54]}  Rxe1+ {[%clk 0:00:46]} 26. Nxe1 {[%clk 0:01:51]}  Qb6 {[%clk 0:00:41]} 27. Nd3 {[%clk 0:01:51]}  Ne4 {[%clk 0:00:38]} 28. Nbc1 {[%clk 0:01:46]}  Ne5 {[%clk 0:00:30]} 29. Qe2 {[%clk 0:01:21]}  Nxd3 {[%clk 0:00:30]} 30. Nxd3 {[%clk 0:01:22]}  Qc6 {[%clk 0:00:23]} 31. Qc2 {[%clk 0:01:11]}  Qd5 {[%clk 0:00:16]} 32. Ne1 {[%clk 0:01:01]}  Nc5 {[%clk 0:00:15]} 33. b4 {[%clk 0:00:58]}  Ne6 {[%clk 0:00:13]} 34. Nf3 {[%clk 0:00:35]}  Qc4 {[%clk 0:00:12]} 35. Qd2 {[%clk 0:00:32]}  Qb3 {[%clk 0:00:10]} 36. bxa5 {[%clk 0:00:11]}  Qxa4 {[%clk 0:00:09]} 37. Qd5 {[%clk 0:00:05]}  Qa1+ {[%clk 0:00:09]} 38. Kh2 {[%clk 0:00:06]}  Qxc3 {[%clk 0:00:09]} 39. g3 {[%clk 0:00:06]}  Qc7 {[%clk 0:00:09]} 40. Kg2 {[%clk 0:00:06]}  Nc5 {[%clk 0:00:08]} 41. Ne5 {[%clk 0:00:07]}  Ne6 {[%clk 0:00:08]} 42. h4 {[%clk 0:00:07]}  Nd8 {[%clk 0:00:08]} 43. Kf3 {[%clk 0:00:07]}  Nc6 {[%clk 0:00:08]} 44. Nxc6 {[%clk 0:00:06]}  bxc6 {[%clk 0:00:09]} 45. Qc5 {[%clk 0:00:07]}  Qd7 {[%clk 0:00:09]} 46. Kg2 {[%clk 0:00:07]}  Qe6 {[%clk 0:00:08]} 47. a6 {[%clk 0:00:07]}  Qe4+ {[%clk 0:00:08]} 48. Kh2 {[%clk 0:00:07]}  Qa4 {[%clk 0:00:07]} 49. a7 {[%clk 0:00:08]}  Qa2 {[%clk 0:00:05]} 50. Qb6 {[%clk 0:00:07]}  Kh7 {[%clk 0:00:05]} 51. Qc5 {[%clk 0:00:06]}  g6 {[%clk 0:00:04]} 52. h5 {[%clk 0:00:07]}  Kg7 {[%clk 0:00:04]} 53. hxg6 {[%clk 0:00:07]}  fxg6 {[%clk 0:00:05]} 54. Qe7+ {[%clk 0:00:07]}  Kg8 {[%clk 0:00:05]} 55. Qd8+ {[%clk 0:00:06]}  Kg7 {[%clk 0:00:05]} 56. Qe7+ {[%clk 0:00:06]}  Kg8 {[%clk 0:00:05]} 57. Qc5 {[%clk 0:00:07]}  Kg7 {[%clk 0:00:05]} 58. Kg2 {[%clk 0:00:07]}  h5 {[%clk 0:00:05]} 59. Qe7+ {[%clk 0:00:07]}  Kh6 {[%clk 0:00:05]} 60. Qf8+ {[%clk 0:00:08]}  Kh7 {[%clk 0:00:05]} 61. a8=Q {[%clk 0:00:08]}  Qd5+ {[%clk 0:00:05]} 62. Qf3 {[%clk 0:00:09]}  Qd7 {[%clk 0:00:04]} 63. Qaxc6 {[%clk 0:00:09]}  Qg7 {[%clk 0:00:04]} 64. Qcf6 {[%clk 0:00:09]} 1-0


[Site "https://www.chess.com"]